bitfinex-derivatives/quotes_ETHF0:USTF0_20250828
["timestamp","ask_amount","ask_price","bid_price","bid_amount"]
[1756340789485,0.6977,4489.7,4488.7,3.2078]
[1756340789486,0.40091,4489.1,4488.7,3.2078]
[1756340789790,0.40088,4489.5,4488.9,2.20912]
[1756340789987,1.4052,4489.7,4489.1,1.1386]
[1756340790193,0.40087,4489.6,4489.2,0.6696]
[1756340790389,1.09856,4489.7,4489.1,1.8082]
[1756340790685,0.40088,4489.5,4489.1,1.8082]
[1756340790888,0.7075,4489.5,4488.8,1.8082]
[1756340791082,0.4009,4489.3,4488.8,0.6696]
[1756340791387,3.2078,4490.0,4489.3,1.8082]
[1756340791591,1.9203,4489.4,4489.3,1.8082]
[1756340792487,0.40088,4489.4,4488.9,0.6789]
[1756340792689,0.40086,4489.6,4489.4,1.871]
[1756340792886,0.7221,4489.9,4489.6,0.6789]
[1756340793085,3.2078,4490.0,4489.4,0.40088]
[1756340793086,3.60863,4490.0,4489.4,0.40088]
[1756340793392,0.40084,4489.9,4489.5,1.871]
[1756340793582,3.2078,4490.0,4489.2,3.48767917]
[1756340793784,1.9203,4489.4,4489.3,1.871]
[1756340793986,0.7221,4489.4,4489.3,1.871]
[1756340794182,0.40088,4489.5,4488.7,44.0078]
[1756340794393,0.40088,4489.5,4489.0,0.40091]
[1756340794692,1.9203,4489.2,4489.1,1.871]
[1756340795688,1.215,4489.2,4489.1,1.871]
[1756340795984,1.215,4489.2,4488.7,44.40874]
[1756340795985,1.12305,4488.6,4488.5,1.871]
[1756340796187,2.32125,4488.6,4488.5,1.871]
[1756340796491,0.40095,4488.6,4488.5,1.871]
[1756340796793,1.12305,4488.6,4488.5,1.871]
[1756340796981,0.7221,4488.6,4488.5,1.871]
[1756340797185,3.2078,4488.8,4488.4,1.1921]
[1756340797393,4.4228,4488.8,4488.7,0.721]
[1756340797590,1.9203,4488.7,4488.6,1.15]
[1756340797890,1.215,4488.5,4488.3,1.871]
[1756340798089,1.59917,4488.5,4488.3,1.871]
[1756340798289,0.40098,4488.3,4488.2,40.8]
[1756340798490,0.40098,4488.3,4488.1,3.9288]
[1756340798795,1.12307,4488.5,4488.2,1.871]
[1756340798984,1.12307,4488.5,4488.3,1.15]
[1756340799184,0.40097,4488.5,4488.4,1.871]
[1756340799389,1.61597,4488.5,4488.4,1.871]
[1756340799590,2.32127,4488.5,4488.4,1.1921]
[1756340799790,3.2078,4488.8,4488.1,3.2078]
[1756340799791,2.32128,4488.3,4488.2,0.4711]
[1756340799993,1.9203,4488.2,4488.1,3.2078]
[1756340801592,0.40098,4488.3,4488.1,4.3578]
[1756340801798,0.40098,4488.3,4488.2,1.871]
[1756340802394,1.12308,4488.3,4488.2,1.871]
[1756340802901,0.40098,4488.3,4488.2,1.871]
[1756340803598,3.2078,4488.8,4488.6,0.40095]
[1756340803795,3.2078,4488.8,4488.7,5.35867917]
[1756340804196,3.60869,4489.3,4488.9,0.40092]
[1756340804592,3.2078,4489.8,4489.0,0.6789]
[1756340804793,0.40086,4489.7,4489.4,1.3999]
[1756340804998,0.40086,4489.7,4489.6,1.3999]
[1756340805200,0.40086,4489.7,4488.9,44.0078]
[1756340805201,3.60865,4489.8,4488.9,44.0078]
[1756340805396,3.2078,4489.8,4489.1,0.721]
[1756340805604,0.40088,4489.5,4489.1,2.2719]
[1756340805801,3.60865,4489.8,4489.5,1.871]
[1756340805997,0.40086,4489.7,4489.6,1.871]
[1756340806301,3.2078,4490.3,4490.1,1.871]
[1756340806506,3.2078,4490.8,4490.5,1.871]
[1756340806808,0.40078,4490.6,4490.5,1.871]
[1756340807004,2.32108,4490.6,4490.5,1.1921]
[1756340807606,0.40078,4490.6,4490.2,3.48767917]
[1756340808104,0.40079,4490.4,4490.3,1.871]
[1756340808607,0.7053,4490.7,4490.2,3.88847917]
[1756340808810,3.60856,4490.8,4490.2,3.88847917]
[1756340808811,3.60856,4490.8,4490.4,0.4711]
[1756340809003,3.2078,4490.8,4490.7,1.871]
[1756340809511,3.2078,4490.8,4490.7,4.99463642]
[1756340809905,3.60849,4491.5,4490.8,1.871]
[1756340810110,3.2078,4491.5,4491.4,3.12363642]
[1756340810304,3.2078,4491.5,4491.4,4.99463642]
[1756340810506,0.7221,4491.8,4491.6,0.721]
[1756340810810,3.2078,4492.1,4492.0,1.871]
[1756340811109,0.7221,4492.5,4492.1,1.871]
[1756340811309,1.215,4492.6,4492.2,1.871]
[1756340811510,1.215,4492.6,4492.1,0.40064]
[1756340811511,1.6156,4492.6,4492.1,0.40064]
[1756340811709,0.40061,4492.5,4492.2,1.871]
[1756340811910,0.7053,4492.4,4492.2,1.3999]
[1756340812112,0.7053,4492.4,4492.0,3.12363642]
[1756340812304,1.215,4492.7,4492.3,0.40062]
[1756340812610,1.9203,4492.5,4492.4,1.15]
[1756340813115,1.9203,4492.5,4492.0,43.92363642]
[1756340813116,1.215,4492.4,4492.3,0.721]
[1756340813312,1.9203,4492.4,4492.3,0.721]
[1756340813501,1.9203,4492.7,4492.4,1.1921]
[1756340813815,0.7221,4493.1,4493.0,0.721]
[1756340814008,1.61555,4493.1,4493.0,1.1921]
[1756340814209,1.215,4493.1,4493.0,1.871]
[1756340814412,1.9203,4493.1,4492.6,3.12363642]
[1756340814614,2.32088,4492.8,4492.7,1.1921]
[1756340814816,1.9203,4492.8,4492.7,1.1921]
[1756340815210,1.215,4493.1,4492.6,3.52422642]
[1756340815509,1.9203,4494.3,4493.5,0.721]
[1756340815717,4.4228,4494.9,4494.3,1.59254]
[1756340815912,4.4228,4494.9,4494.8,3.12363642]
[1756340816112,5.1281,4494.9,4494.8,3.12363642]
[1756340816510,5.1281,4494.9,4494.8,3.84463642]
[1756340816815,1.4274,4494.7,4494.2,3.80253642]
[1756340817012,0.4004,4494.8,4494.2,3.80253642]
[1756340817412,0.7221,4494.7,4494.1,3.2078]
[1756340817717,1.4274,4494.5,4494.4,0.6789]
[1756340817919,0.7221,4494.5,4494.4,1.3999]
[1756340818108,0.7221,4494.8,4494.7,1.3999]
[1756340818305,0.7221,4495.0,4494.6,3.2078]
[1756340818515,0.7221,4495.0,4494.6,3.60822]
[1756340818709,0.7221,4495.0,4494.7,1.3999]
[1756340818908,1.4274,4495.0,4494.7,1.3999]
[1756340819104,1.4274,4495.0,4494.7,0.4004]
[1756340819318,1.4274,4495.0,4494.9,1.3999]
[1756340820014,3.2078,4495.5,4494.6,3.2078]
[1756340820321,1.4274,4494.9,4494.7,1.3999]
[1756340820514,0.7221,4494.9,4494.8,1.3999]
[1756340820812,0.40039,4495.0,4494.6,3.2078]
[1756340821214,0.40035,4495.4,4494.8,1.3999]
[1756340821424,3.2078,4495.5,4495.4,1.3999]
[1756340822313,0.6928,4496.0,4495.3,0.6666]
[1756340822508,1.0931,4496.0,4495.4,0.40034]
[1756340822818,0.40031,4495.9,4495.4,0.40034]
[1756340823015,0.6928,4496.0,4495.2,0.40036]
[1756340823210,0.6928,4496.0,4494.1,1.00115]
[1756340823211,1.7728,4494.8,4494.7,0.6666]
[1756340823412,1.3724,4494.8,4494.7,0.6666]
[1756340823619,0.6928,4494.8,4494.7,1.3445]
[1756340823818,0.40037,4495.2,4494.7,0.6666]
[1756340824118,0.40035,4495.4,4494.7,0.22247]
[1756340824421,1.77278,4495.1,4495.0,3.2078]
[1756340824715,1.3724,4495.4,4494.6,0.6666]
[1756340824920,1.0009,4495.3,4494.5,3.2078]
[1756340825117,1.3724,4494.6,4494.5,3.2078]
[1756340825424,0.6928,4494.6,4494.5,4.5523]
[1756340825614,1.3724,4494.6,4494.5,3.2078]
[1756340825818,0.40036,4495.3,4494.9,1.07829]
[1756340826024,0.6928,4496.0,4495.6,0.40032]
[1756340826213,0.6928,4496.0,4495.8,3.96513062]
[1756340826412,0.40023,4496.8,4496.3,1.3445]
[1756340826616,32.7536,4497.0,4496.5,1.3445]
[1756340826819,1.3724,4497.0,4496.6,3.56482062]
[1756340827020,0.6928,4497.2,4497.0,1.3445]
[1756340827225,0.6928,4497.2,4497.1,1.3445]
[1756340827517,0.6928,4497.2,4496.9,3.60801]
[1756340827518,0.4002,4497.1,4496.9,3.2078]
[1756340827718,1.3724,4497.0,4496.9,3.2078]
[1756340828121,8.80257,4497.0,4495.8,0.6666]
[1756340828316,4.5802,4497.0,4495.8,41.4666]
[1756340828623,20.4138,4497.0,4495.8,44.36482062]
[1756340828817,3.2078,4496.5,4495.7,3.2078]
[1756340829009,1.3724,4496.4,4495.7,3.2078]
[1756340829217,1.3724,4496.4,4495.8,0.6666]
[1756340829418,0.6928,4496.4,4495.7,3.2078]
[1756340829616,0.6928,4496.0,4495.7,3.2078]
[1756340829821,1.3724,4496.4,4495.7,3.8857]
[1756340830126,1.3724,4496.3,4495.7,3.2078]
[1756340830322,0.6928,4496.0,4495.7,3.2078]
[1756340830523,0.6796,4495.9,4495.7,3.2078]
[1756340830721,3.2078,4496.5,4495.7,3.2078]
[1756340830916,0.6928,4496.4,4495.8,1.3445]
[1756340831618,0.6928,4496.4,4495.9,0.6666]
[1756340831918,3.8874,4496.5,4496.0,0.6779]
[1756340832123,3.8874,4496.5,4495.9,0.4003]
[1756340832124,4.5802,4496.5,4495.9,1.3445]
[1756340832720,4.5802,4496.5,4495.9,1.74479]
[1756340832920,1.3724,4496.5,4495.9,1.74479]
[1756340833319,0.6796,4496.1,4495.9,0.6666]
[1756340833517,0.6928,4495.8,4495.7,4.5523]
[1756340833727,1.3724,4495.8,4495.7,4.5523]
[1756340833927,1.3724,4495.8,4495.7,3.2078]
[1756340834121,21.605,4497.0,4495.2,0.6666]
[1756340834122,0.6796,4495.7,4495.2,0.6666]
[1756340834429,3.2078,4495.6,4494.3,3.2078]
[1756340834627,1.3724,4495.5,4494.8,0.6666]
[1756340834921,3.2078,4495.5,4494.5,3.56482062]
[1756340835229,1.3724,4495.4,4494.5,3.56482062]
[1756340835521,1.3724,4495.4,4494.4,0.6666]
[1756340835727,1.3724,4494.5,4494.4,0.6666]
[1756340836326,1.3724,4494.5,4494.4,1.3445]
[1756340836830,0.40042,4494.6,4494.4,1.3445]
[1756340837022,0.6928,4494.9,4494.3,1.3445]
[1756340837627,1.0933,4493.7,4493.6,1.3445]
[1756340837921,1.0933,4493.7,4493.5,3.2078]
[1756340837922,1.3724,4493.6,4493.5,3.2078]
[1756340838729,1.3724,4493.6,4493.5,4.5523]
[1756340839130,1.3724,4493.6,4493.5,3.8744]
[1756340839529,0.4005,4493.7,4493.5,3.2078]
[1756340839724,0.4005,4493.7,4493.6,1.3445]
[1756340839925,0.6928,4493.6,4493.5,3.2078]
[1756340840123,0.6928,4493.6,4493.5,4.5523]
[1756340840426,0.6928,4493.6,4493.5,1.3445]
[1756340840631,0.40055,4493.1,4493.0,4.5523]
[1756340840831,1.3724,4493.6,4493.0,4.5523]
[1756340841028,0.40051,4493.6,4493.3,1.3445]
[1756340841228,1.77291,4493.6,4493.5,1.3445]
[1756340841429,0.40055,4493.1,4493.0,4.5523]
[1756340842329,0.40055,4493.1,4493.0,8.5523]
[1756340842526,0.40055,4493.1,4493.0,4.5523]
[1756340843334,0.40054,4493.3,4493.2,1.3445]
[1756340845030,1.77295,4493.1,4493.0,3.2078]
[1756340845335,2.35489364,4493.1,4493.0,3.2078]
[1756340846330,0.98249364,4493.1,4493.0,4.5523]
[1756340846525,0.6928,4494.2,4493.0,3.60836]
[1756340846733,0.58127053,4494.1,4493.8,0.6779]
[1756340846936,0.58127053,4494.0,4493.7,0.6666]
[1756340847137,0.40048,4494.0,4493.7,0.6666]
[1756340847436,0.40049,4493.8,4493.7,1.3445]
[1756340847628,0.40049,4493.8,4493.7,1.8274]
[1756340848931,2.24709,4493.8,4493.7,1.1495]
[1756340849143,0.6928,4493.3,4493.2,1.1495]
[1756340849342,0.40054,4493.2,4492.9,3.56482062]
[1756340849533,0.40053,4493.4,4492.9,3.56482062]
[1756340849734,2.16819,4494.0,4492.9,3.56482062]
[1756340850042,0.40053,4493.4,4493.2,1.3445]
[1756340850240,0.40056,4493.1,4493.0,1.8274]
[1756340850440,0.40053,4493.4,4493.0,1.8274]
[1756340850642,10.74009,4494.5,4492.9,3.56482062]
[1756340850643,0.40054,4493.3,4493.2,1.1608]
[1756340850839,0.40054,4493.3,4493.2,1.8274]
[1756340851736,2.19484,4493.3,4493.2,0.6666]
[1756340851939,0.40056,4493.0,4492.9,5.40902062]
[1756340852145,1.05676,4493.0,4492.9,5.40902062]
[1756340852436,1.00126,4493.7,4493.2,0.6833]
[1756340852437,0.40053,4493.4,4493.2,0.6833]
[1756340852646,0.40052,4493.5,4493.0,1.8442]
[1756340852943,0.40053,4493.4,4493.2,1.1711]
[1756340853140,4.3456,4494.5,4493.5,1.75691]
[1756340853332,0.40046,4494.2,4493.7,1.8442]
[1756340853538,4.3456,4494.5,4493.8,3.2078]
[1756340853539,3.2078,4494.5,4493.8,3.2078]
[1756340854040,3.2078,4494.5,4493.9,1.3564]
[1756340854334,3.2078,4494.5,4494.2,0.4878]
[1756340854646,3.2078,4494.5,4494.1,1.8442]
[1756340854841,3.2078,4494.5,4494.2,1.1711]
[1756340855146,1.0566,4494.8,4494.6,1.1711]
[1756340855357,0.4004,4494.8,4494.7,1.8442]
[1756340855640,3.6894,4495.5,4494.8,0.40039]
[1756340855845,3.2078,4495.5,4495.1,0.40037]
[1756340856144,0.6562,4495.7,4495.2,1.8442]
[1756340856340,3.6894,4496.0,4495.0,3.56482062]
[1756340856541,1.7943,4495.3,4495.2,0.6833]
[1756340857145,0.6562,4495.6,4494.9,3.60819]
[1756340857442,0.6562,4495.6,4495.0,1.8442]
[1756340857745,1.7943,4495.1,4495.0,0.6833]
[1756340857951,0.40036,4495.3,4494.9,3.2078]
[1756340858245,0.6565,4495.3,4495.0,0.6833]
[1756340858436,1.7943,4495.3,4495.2,0.6833]
[1756340858638,1.7943,4495.3,4495.2,1.8442]
[1756340858947,1.1378,4495.3,4495.2,1.8442]
[1756340859148,1.05653,4495.6,4495.0,1.8442]
[1756340859339,1.1381,4495.3,4495.2,1.1711]
[1756340859539,1.7943,4495.3,4495.2,0.6833]
[1756340859740,3.2078,4496.0,4494.9,3.2078]
[1756340859741,0.40033,4495.6,4495.0,0.6833]
[1756340859944,1.7943,4495.5,4495.0,0.6833]
[1756340860139,0.40033,4495.6,4495.0,0.6833]
[1756340860345,1.7943,4495.7,4495.0,0.6833]
[1756340860540,1.7943,4495.7,4495.1,1.1609]
[1756340860745,1.7943,4495.7,4494.9,3.2078]
[1756340860941,1.7943,4495.7,4495.1,0.40037]
[1756340861547,1.7943,4495.7,4495.3,0.40035]
[1756340861745,3.2078,4496.0,4494.9,3.2078]
[1756340862045,3.2078,4496.0,4495.9,1.8442]
[1756340862246,1.1381,4496.3,4496.0,1.1711]
[1756340862448,1.1381,4496.3,4496.2,1.8442]
[1756340862650,1.7943,4496.3,4495.6,1.8442]
[1756340862849,1.1378,4496.3,4495.6,1.8442]
[1756340863047,1.7943,4496.3,4495.6,1.1609]
[1756340863250,0.6562,4496.1,4495.6,1.1609]
[1756340863451,1.7943,4496.2,4495.7,0.40031]
[1756340863644,0.40027,4496.3,4495.7,0.40031]
[1756340863847,1.3127,4496.1,4495.9,1.8442]
[1756340864043,1.7943,4496.1,4496.0,1.8442]
[1756340864749,0.6562,4496.4,4496.0,0.40029]
[1756340864949,1.7943,4496.4,4496.3,0.6833]
[1756340865151,21.409,4496.7,4496.3,0.6833]
[1756340865152,21.409,4496.7,4496.3,1.3564]
[1756340865351,0.6562,4496.5,4496.3,0.6731]
[1756340865551,1.7943,4496.5,4495.5,3.2078]
[1756340865852,0.40026,4496.4,4495.8,0.40031]
[1756340866152,0.4816,4496.2,4496.0,0.6731]
[1756340866454,1.7943,4496.1,4496.0,1.3564]
[1756340866956,1.7943,4496.1,4496.0,1.8442]
[1756340867254,0.6562,4496.1,4496.0,1.8442]
[1756340867555,0.6562,4496.4,4495.5,45.00864]
[1756340867750,0.6562,4496.4,4495.8,0.6833]
[1756340868055,1.1381,4496.9,4496.2,3.2078]
[1756340868251,0.6562,4496.8,4496.6,1.8442]
[1756340868455,1.1381,4496.9,4496.7,1.1609]
[1756340868753,1.7943,4496.9,4496.8,1.8442]
[1756340868953,0.6565,4497.2,4496.6,0.40023]
[1756340869249,1.7943,4497.5,4496.9,1.8442]
[1756340869656,0.40017,4497.4,4496.9,2.24441]
[1756340869848,1.7943,4497.2,4497.1,1.8442]
[1756340870248,0.6562,4497.2,4497.1,1.8442]
[1756340870750,0.40017,4497.5,4497.1,1.8442]
[1756340870751,0.6562,4497.5,4497.1,0.40019]
[1756340870943,4.3459,4497.6,4497.3,0.40018]
[1756340871148,4.3459,4497.6,4497.5,1.3564]
[1756340871353,1.1381,4497.6,4497.5,1.8442]
[1756340871850,0.4816,4497.6,4497.5,1.8442]
[1756340872053,1.7943,4497.8,4497.5,1.8442]
[1756340872355,0.6562,4497.7,4497.5,1.8442]
[1756340872551,1.1378,4497.7,4497.5,1.8442]
[1756340872852,1.1378,4497.7,4497.4,0.40016]
[1756340873051,1.1378,4497.7,4497.3,1.1609]
[1756340873353,0.6565,4497.9,4497.8,0.6731]
[1756340873554,1.7943,4497.9,4497.8,1.8442]
[1756340873748,1.7943,4497.9,4497.3,0.6833]
[1756340873948,2.4036,4497.4,4497.3,1.9323]
[1756340874148,3.0601,4497.4,4497.3,1.9323]
[1756340874559,3.0601,4497.4,4497.3,3.0932]
[1756340875156,3.0601,4497.4,4497.3,1.9323]
[1756340875357,3.0601,4497.3,4497.2,5.6279]
[1756340875953,3.0601,4497.3,4497.2,3.2078]
[1756340876148,3.0601,4496.8,4496.7,4.674]
[1756340876553,3.0601,4496.8,4496.7,3.2078]
[1756340877350,3.0601,4496.4,4496.3,1.9323]
[1756340878057,3.0601,4496.4,4496.3,1.249]
[1756340878259,3.0601,4496.4,4496.3,3.0932]
[1756340878758,0.9313,4496.4,4496.3,6.301]
[1756340878957,0.9313,4496.4,4496.3,3.0932]
[1756340879361,0.9313,4496.4,4496.3,6.20920387]
[1756340879757,1.5875,4496.4,4496.3,6.20920387]
[1756340880152,1.922,4496.4,4496.3,6.20920387]
[1756340880349,3.0601,4496.4,4496.3,6.20920387]
[1756340880758,3.0601,4496.4,4496.3,5.1401]
[1756340880960,1.9223,4496.0,4495.9,2.314]
[1756340881260,1.7943,4495.7,4495.6,3.2078]
[1756340881459,1.7943,4495.7,4495.6,5.052]
[1756340882059,1.7943,4495.7,4495.6,3.2078]
[1756340882362,0.6405,4496.3,4495.7,1.8136]
[1756340882561,1.7399,4496.9,4496.2,1.8136]
[1756340882866,1.7399,4497.2,4497.0,1.1268]
[1756340883055,0.6405,4497.5,4497.0,0.40021]
[1756340883258,3.2078,4497.6,4496.7,6.32380387]
[1756340883553,0.6405,4496.9,4496.7,3.8946]
[1756340883759,1.0964,4496.8,4496.7,3.8946]
[1756340883966,18.734,4497.4,4496.7,8.13740387]
[1756340884163,1.0964,4497.5,4497.0,0.40021]
[1756340884468,1.0994,4497.3,4496.8,1.1718]
[1756340884661,1.0994,4497.3,4495.7,1.0008]
[1756340884662,0.4559,4496.9,4495.8,0.40031]
[1756340884964,3.2078,4497.1,4495.7,1.8136]
[1756340885166,1.7399,4496.9,4495.8,0.40031]
[1756340885368,19.229,4497.0,4495.7,1.8136]
[1756340885667,1.7399,4496.8,4495.7,1.8136]
[1756340885963,0.22240001,4496.9,4495.7,1.8136]
[1756340886160,1.7399,4496.9,4496.2,1.1718]
[1756340886363,13.116,4496.8,4496.2,1.1718]
[1756340886667,1.7399,4496.9,4496.2,1.1718]
[1756340886868,1.7399,4496.9,4496.2,1.57208]
[1756340887066,1.7399,4496.9,4496.3,0.6418]
[1756340887966,0.6435,4496.4,4496.1,3.2078]
[1756340888160,1.7399,4496.8,4496.1,3.2078]
[1756340888364,1.7399,4496.9,4496.1,3.2078]
[1756340888666,21.368,4497.0,4496.0,3.11600387]
[1756340888860,1.7399,4496.5,4496.0,3.75780387]
[1756340889066,3.2078,4496.6,4496.0,3.11600387]
[1756340889263,1.0964,4496.5,4496.0,3.11600387]
[1756340889465,0.6435,4496.3,4495.9,3.60100387]
[1756340889669,1.7399,4496.7,4496.0,1.8136]
[1756340889863,1.7399,4496.7,4496.0,2.21389]
[1756340890062,1.7399,4496.7,4496.1,0.40029]
[1756340890566,1.7399,4496.7,4496.4,1.1268]
[1756340890763,21.367,4496.8,4496.4,1.8136]
[1756340891073,1.7399,4496.7,4496.4,1.8136]
[1756340891265,21.367,4496.9,4496.3,0.40027]
[1756340891466,1.7399,4496.8,4496.5,1.1268]
[1756340891663,1.7399,4496.8,4496.5,1.1718]
[1756340891960,1.284,4496.4,4495.9,0.4003]
[1756340892165,1.7399,4496.5,4495.9,0.4003]
[1756340893059,1.7399,4496.5,4496.1,2.21389]
[1756340893060,0.6405,4496.2,4496.1,2.21389]
[1756340893265,1.7399,4496.2,4496.1,1.1718]
[1756340893672,1.7399,4496.2,4496.1,1.8136]
[1756340895466,0.6405,4496.7,4496.3,1.1268]
[1756340895669,0.4559,4496.8,4496.5,0.40025]
[1756340895867,0.6435,4496.9,4496.3,1.8136]
[1756340896172,1.7399,4496.9,4496.2,0.6868]
[1756340896372,13.103,4497.0,4496.2,0.6868]
[1756340896670,1.284,4496.9,4496.2,0.6868]
[1756340896880,1.7399,4496.9,4496.2,1.08708]
[1756340897060,0.6435,4496.9,4496.2,1.08708]
[1756340897259,13.103,4497.0,4496.2,0.40028]
[1756340897466,1.7399,4496.9,4496.2,0.40028]
[1756340897866,13.103,4497.0,4496.1,7.41089387]
[1756340898176,1.7399,4496.9,4496.1,7.41089387]
[1756340898674,13.103,4497.0,4496.1,7.41089387]
[1756340898875,2.9768,4496.2,4496.1,3.9897]
[1756340899066,2.9768,4496.2,4496.1,4.4376]
[1756340899265,0.4386,4496.2,4496.1,6.2512]
[1756340899471,2.9768,4496.6,4496.5,3.0434]
[1756340899969,1.2369,4496.2,4496.1,3.2078]
[1756340900169,2.9768,4496.2,4496.1,3.2078]
[1756340900469,2.9768,4496.2,4496.1,4.9226]
[1756340900670,2.9768,4496.2,4496.1,6.2512]
[1756340900869,2.3333,4496.2,4496.1,6.2512]
[1756340901378,2.9768,4496.2,4496.1,6.2512]
[1756340901575,2.9768,4496.2,4496.1,4.4376]
[1756340902176,2.9768,4496.2,4496.1,5.1244]
[1756340902786,2.9768,4496.2,4496.1,5.6094]
[1756340903078,2.9768,4496.2,4496.1,5.1244]
[1756340903972,2.9768,4496.2,4496.1,6.2512]
[1756340905483,2.9768,4496.2,4496.1,6.52847889]
[1756340905777,2.9768,4496.2,4496.1,6.2512]
[1756340906381,2.9768,4496.2,4496.1,5.6094]
[1756340906583,2.9768,4496.2,4496.1,5.1244]
[1756340906774,2.9768,4496.2,4496.1,4.4376]
[1756340907476,2.9768,4496.2,4496.1,1.2298]
[1756340908083,2.9768,4496.2,4496.1,0.3189]
[1756340908281,2.9768,4495.3,4495.2,1.9166]
[1756340908485,1.5651,4494.8,4494.7,0.3189]
[1756340908689,2.0037,4494.2,4494.1,3.0434]
[1756340909275,1.7399,4494.1,4493.8,0.485]
[1756340909482,2.3333,4493.9,4493.8,2.4016]
[1756340909779,2.9768,4493.9,4493.8,3.0434]
[1756340910584,2.9768,4493.9,4493.8,1.9166]
[1756340910784,2.9768,4493.9,4493.8,0.3189]
[1756340910990,0.4386,4493.1,4493.0,3.0434]
[1756340911284,2.3333,4493.1,4493.0,3.0434]
[1756340911484,2.9768,4493.1,4493.0,3.0434]
[1756340911690,2.9768,4493.1,4492.6,1.7479]
[1756340911895,1.2369,4493.1,4492.4,3.2078]
[1756340912183,32.25498222,4494.4,4492.0,1.7479]
[1756340912184,2.9731,4492.6,4492.0,1.7479]
[1756340912388,0.6698,4492.4,4491.8,1.7479]
[1756340912584,1.0909,4492.3,4491.8,1.7479]
[1756340912888,1.1321,4492.2,4491.7,1.7479]
[1756340913085,0.4623,4492.2,4491.7,0.6477]
[1756340913288,1.2984,4492.3,4491.7,0.6477]
[1756340913490,1.1321,4492.3,4491.7,0.6477]
[1756340913689,3.2078,4492.4,4491.4,3.2078]
[1756340913885,0.6698,4492.2,4491.5,1.7479]
[1756340914087,3.2078,4492.4,4491.5,1.7479]
[1756340914686,1.7607,4492.3,4491.5,1.7479]
[1756340914990,0.6698,4492.2,4491.6,0.4555]
[1756340915185,1.0909,4492.3,4491.8,0.40069]
[1756340915386,0.6698,4492.2,4491.6,0.40072]
[1756340915691,1.7607,4492.3,4491.5,1.7479]
[1756340915892,0.4623,4492.1,4491.5,2.14862]
[1756340916094,1.2984,4492.0,4491.5,1.7479]
[1756340916293,1.5201,4491.8,4491.7,1.6457]
[1756340916593,1.0909,4492.3,4491.8,1.7479]
[1756340916790,2.3033,4492.3,4492.2,1.1902]
[1756340917096,2.9731,4492.3,4492.2,2.9381]
[1756340917891,3.2078,4492.4,4492.3,2.9381]
[1756340918091,3.2078,4492.4,4492.3,1.7479]
[1756340918295,0.6698,4492.9,4492.0,3.2078]
[1756340918594,3.2078,4493.0,4492.9,2.14851]
[1756340918793,3.2078,4493.0,4492.9,1.7479]
[1756340920290,0.6698,4492.8,4492.7,0.6477]
[1756340920490,0.6698,4492.8,4492.7,1.7479]
[1756340921600,1.1321,4492.8,4492.7,1.7479]
[1756340921898,1.7607,4492.8,4492.7,1.7479]
[1756340922092,0.4623,4492.6,4492.1,0.40067]
[1756340922288,1.7607,4492.9,4492.1,0.6447]
[1756340922488,0.6698,4492.7,4492.1,0.6447]
[1756340922688,0.6698,4492.7,4492.2,1.1032]
[1756340922890,1.7607,4492.7,4492.1,1.7479]
[1756340923089,1.0909,4492.4,4492.1,0.6447]
[1756340923286,3.2078,4492.5,4492.1,0.6447]
[1756340923490,1.1321,4492.4,4492.1,0.6447]
[1756340923789,1.7607,4492.2,4491.6,0.4555]
[1756340924695,3.2078,4492.5,4491.6,0.40072]
[1756340924899,3.2078,4492.5,4491.7,1.7479]
[1756340924900,1.7607,4492.4,4491.7,1.7479]
[1756340925303,1.7607,4492.4,4492.1,1.1002]
[1756340925597,1.7607,4492.4,4492.3,1.7479]
[1756340925796,1.7607,4492.4,4492.3,1.1002]
[1756340926296,3.2078,4492.5,4492.4,1.7479]
[1756340926695,0.6286,4492.9,4492.4,1.7479]
[1756340926996,0.4623,4492.6,4492.2,0.6477]
[1756340927196,1.07047,4492.3,4492.2,2.14857]
[1756340927499,1.07047,4492.3,4492.1,3.11600387]
[1756340927500,0.40064,4492.6,4492.4,0.40065]
[1756340927694,0.40064,4492.6,4492.5,1.7479]
[1756340928101,1.53272,4492.8,4492.2,1.7479]
[1756340928289,3.8364,4493.1,4492.4,1.1032]
[1756340928492,0.40061,4492.9,4492.7,0.40062]
[1756340928697,0.40061,4492.9,4492.8,1.7479]
[1756340928997,1.49961,4492.9,4492.8,2.9381]
[1756340929202,2.74511,4492.9,4492.8,2.9381]
[1756340929501,3.37371,4492.9,4492.8,2.9381]
[1756340929901,6.5815,4493.1,4493.0,2.9381]
[1756340930092,6.5815,4493.1,4493.0,2.2904]
[1756340930590,6.1809,4493.1,4493.0,2.9381]
[1756340931390,3.05303,4492.7,4492.6,1.8349]
[1756340931589,3.37373,4492.7,4492.6,0.2955]
[1756340931795,1.2124,4492.5,4492.4,1.32225]
[1756340932000,2.9731,4492.5,4492.4,3.33875]
[1756340932396,2.3445,4492.5,4492.4,3.33875]
[1756340932602,0.8917,4492.5,4492.4,3.33875]
[1756340933905,0.8917,4492.5,4492.4,2.9381]
[1756340934103,2.9731,4492.5,4492.4,2.9381]
[1756340934503,4.4202,4493.1,4493.0,1.1902]
[1756340934807,6.58149,4493.1,4493.0,1.8349]
[1756340935206,6.58149,4493.1,4493.0,1.1902]
[1756340936203,4.39139,4493.1,4493.0,1.1902]